bitfinex/quotes_ETHUSD_20260228
["timestamp","ask_amount","ask_price","bid_price","bid_amount"]
[1772286809284,5.88894377,1906.3,1904.4,4.56509863]
[1772286809460,5.24548887,1906.8,1904.5,6.29012384]
[1772286809673,0.29220347,1908.2,1904.4,4.56509863]
[1772286809674,5.24183236,1907.8,1906.1,4.56509863]
[1772286809884,5.24183236,1907.8,1905.3,4.56509863]
[1772286809885,1.38884416,1907.2,1905.3,4.56509863]
[1772286810196,1.38884416,1907.2,1904.7,2.64572135]
[1772286810197,5.88894377,1906.9,1904.7,1.31254265]
[1772286810515,5.88894377,1906.6,1904.6,7.6027129]
[1772286810664,2.473,1906.9,1904.8,6.29012384]
[1772286810866,10.4540424,1906.7,1904.6,4.56509863]
[1772286811060,5.88894377,1906.1,1903.6,6.29012384]
[1772286811360,4.56509863,1906.2,1903.6,6.29012384]
[1772286811361,5.88894377,1905.7,1903.6,6.29012384]
[1772286811599,2.61742572,1905.9,1903.3,7.60357801]
[1772286811600,8.44083349,1905.9,1903.3,7.60357801]
[1772286811794,5.88894377,1905.6,1903.6,4.56509863]
[1772286812111,5.88894377,1905.6,1903.3,0.065536]
[1772286812276,5.88894377,1905.6,1903.4,1.3134391]
[1772286812277,5.88894377,1905.4,1903.4,1.3134391]
[1772286812481,5.02288972,1905.9,1903.6,10.85522247]
[1772286812697,4.12431251,1907.9,1905.3,4.56509863]
[1772286812698,1.31089088,1907.1,1905.3,4.56509863]
[1772286812998,1.31089088,1907.1,1905.4,2.601]
[1772286813311,1.38886595,1907.2,1905.5,0.065536]
[1772286813508,1.38886595,1907.2,1905.4,6.29012384]
[1772286813509,1.38886595,1907.2,1905.4,0.065536]
[1772286813702,1.38886595,1907.2,1904.4,4.56509863]
[1772286813703,5.88894377,1906.9,1904.4,4.56509863]
[1772286814001,5.88894377,1906.7,1904.5,0.065536]
[1772286814204,1.38886595,1907.2,1905.3,1.31212932]
[1772286814373,1.38886595,1907.2,1905.6,10.85522247]
[1772286814374,1.38883273,1907.2,1905.6,10.85522247]
[1772286814575,1.38883273,1907.2,1905.8,6.35565984]
[1772286814576,0.078,1907.2,1905.8,6.35565984]
[1772286814770,0.078,1907.2,1906.0,4.56509863]
[1772286815003,0.078,1907.2,1906.0,2.597]
[1772286815223,0.078,1907.2,1906.1,4.56509863]
[1772286815382,1.38883067,1907.2,1905.8,6.35565984]
[1772286815717,1.38883067,1907.2,1905.4,8.95065984]
[1772286816008,1.38883067,1907.2,1904.8,1.31240858]
[1772286816009,5.88894377,1907.0,1904.8,1.31240858]
[1772286816263,5.88894377,1906.8,1904.5,1.31268049]
[1772286816430,5.88894377,1906.8,1903.8,2.68774229]
[1772286816431,5.88894377,1906.2,1904.0,4.56509863]
[1772286816602,2.479,1906.1,1904.0,7.60314647]
[1772286816804,1.31102837,1906.9,1904.6,6.29012384]
[1772286817045,2.55188972,1907.9,1905.4,6.29012384]
[1772286817046,0.078,1907.2,1905.4,6.29012384]
[1772286817346,0.078,1907.2,1905.5,2.601]
[1772286817347,7.27777838,1907.2,1905.5,2.601]
[1772286817541,1.38886565,1907.2,1905.3,6.35565984]
[1772286817838,1.38886565,1907.2,1905.6,4.56509863]
[1772286818008,1.38886565,1907.2,1905.7,2.599]
[1772286818210,1.38886565,1907.2,1905.4,1.31206045]
[1772286818524,7.27780942,1907.2,1905.4,0.065536]
[1772286818721,1.21956976,1907.2,1905.8,6.29012384]
[1772286818900,0.29220347,1908.2,1906.8,4.56509863]
[1772286819105,1.6023887,1908.2,1906.8,4.56509863]
[1772286819337,5.88894377,1908.1,1906.0,4.56509863]
[1772286819536,5.88894377,1908.1,1905.7,8.88912384]
[1772286819537,5.88894377,1908.1,1905.7,6.29012384]
[1772286819737,4.56509863,1907.9,1905.7,6.29012384]
[1772286819978,5.88894377,1907.9,1906.0,4.56509863]
[1772286820263,5.88894377,1908.1,1906.1,1.37707018]
[1772286820431,0.1493159,1908.7,1907.7,4.56509863]
[1772286820632,1.30896905,1909.9,1908.1,4.56509863]
[1772286820825,1.30896905,1909.9,1907.4,2.608]
[1772286820826,6.22226603,1909.8,1907.4,2.608]
[1772286821029,6.22226603,1909.7,1907.1,10.88223052]
[1772286821274,10.78736466,1909.5,1907.2,0.065536]
[1772286821564,10.78736466,1909.5,1906.2,16.84729589]
[1772286821565,6.22226603,1909.0,1906.5,8.92413189]
[1772286821737,19.33829589,1909.8,1906.0,5.43323444]
[1772286821738,6.22226603,1908.2,1906.0,4.56509863]
[1772286821935,6.22226603,1908.2,1906.4,4.56509863]
[1772286821936,2.49,1908.1,1906.4,4.56509863]
[1772286822133,6.22226603,1909.7,1906.6,6.31713189]
[1772286822331,6.22226603,1908.8,1906.7,0.065536]
[1772286822531,11.45938951,1909.5,1907.5,0.065536]
[1772286822733,6.22226603,1909.5,1907.9,0.065536]
[1772286822965,1.30918755,1909.6,1907.9,0.02]
[1772286823642,2.65794992,1911.4,1908.8,6.05873908]
[1772286823857,6.11216669,1910.8,1908.7,0.18685624]
[1772286824035,1.30819517,1911.1,1908.0,4.56509863]
[1772286824036,6.11216669,1910.3,1908.0,4.56509863]
[1772286824235,7.42120428,1909.8,1907.9,0.02]
[1772286824437,7.74115038,1910.2,1907.9,0.02]
[1772286824438,11.34660464,1910.5,1908.4,4.56509863]
[1772286824739,11.34660464,1910.5,1908.4,6.05873908]
[1772286824947,1.30821559,1911.0,1908.9,10.62383771]
[1772286825264,6.09216669,1911.1,1908.9,4.56509863]
[1772286825467,6.09216669,1911.1,1908.9,10.62383771]
[1772286825681,6.09216669,1911.1,1909.1,0.065536]
[1772286825837,1.30801025,1911.3,1909.1,0.065536]
[1772286825838,7.42017694,1911.3,1909.1,0.065536]
[1772286826037,6.11216669,1910.7,1908.0,4.56509863]
[1772286826239,1.30801025,1911.3,1909.5,4.56509863]
[1772286826542,5.23204101,1911.7,1908.9,9.13019726]
[1772286826543,1.38568368,1911.8,1909.9,4.56509863]
[1772286826943,1.38568368,1911.8,1909.6,2.690536]
[1772286826944,6.11216669,1911.4,1909.2,6.05873908]
[1772286827281,6.11216669,1911.4,1908.9,4.56509863]
[1772286827282,2.508,1911.3,1909.3,13.31237371]
[1772286827480,5.95078231,1911.8,1910.6,4.56509863]
[1772286827481,0.078,1911.8,1910.6,4.56509863]
[1772286827799,0.078,1911.8,1910.5,10.62383771]
[1772286828080,1.38567515,1911.8,1910.3,2.38850611]
[1772286828496,5.23067266,1912.1,1910.3,2.38850611]
[1772286828497,5.22815323,1912.8,1910.6,10.62383771]
[1772286828645,5.22815323,1912.8,1910.7,8.75427508]
[1772286828646,1.30732625,1912.3,1910.7,8.75427508]
[1772286828845,1.30732625,1912.3,1910.8,6.05873908]
[1772286829064,1.30732625,1912.3,1908.5,1.57183647]
[1772286829065,4.667651,1912.1,1909.8,4.56509863]
[1772286829250,5.87242488,1912.3,1910.1,3.56284548]
[1772286829251,7.41949294,1912.3,1910.1,3.56284548]
[1772286829451,7.41949294,1912.3,1910.4,3.55984548]
[1772286829745,7.41949294,1912.3,1910.8,3.56284548]
[1772286829746,1.30732625,1912.3,1910.8,3.56284548]
[1772286829946,1.30732625,1912.3,1910.5,6.05873908]
[1772286829947,1.30732625,1912.3,1910.5,3.56284548]
[1772286830142,1.30732625,1912.3,1910.5,6.19684548]
[1772286830347,1.30732625,1912.3,1910.1,1.30883199]
[1772286830348,1.30759976,1911.9,1910.1,1.30883199]
[1772286830557,9.67501217,1911.7,1909.4,1.30931182]
[1772286830780,9.67501217,1911.7,1909.7,3.56284548]
[1772286830980,9.67501217,1911.4,1909.4,3.56284548]
[1772286831202,3.56284548,1910.8,1908.7,2.632]
[1772286831380,2.517,1910.7,1908.7,3.94177065]
[1772286831556,2.517,1910.7,1909.1,3.56284548]
[1772286831876,2.517,1910.7,1908.9,3.56284548]
[1772286832066,6.11216669,1910.6,1908.6,9.62158456]
[1772286832267,6.11216669,1910.1,1908.0,1.3102227]
[1772286832469,3.82190052,1910.0,1908.3,3.56284548]
[1772286832786,6.11216669,1909.7,1907.4,4.3381635]
[1772286832972,6.11216669,1909.6,1907.7,3.56284548]
[1772286833150,6.11216669,1909.6,1907.3,4.87359233]
[1772286833151,6.11216669,1909.5,1907.3,4.87359233]
[1772286833351,6.11216669,1909.4,1907.4,3.56284548]
[1772286833552,2.512,1909.3,1907.6,3.56284548]
[1772286833974,2.512,1909.3,1907.3,3.56284548]
[1772286833975,6.11216669,1909.2,1907.3,3.56284548]
[1772286834176,6.11216669,1908.8,1906.5,1.31130343]
[1772286834382,1.30986063,1908.6,1906.9,4.87382663]
[1772286834685,7.42202732,1908.6,1906.9,3.56284548]
[1772286834979,7.42202732,1908.6,1906.7,3.56284548]
[1772286835181,10.9848728,1908.6,1906.7,3.56284548]
[1772286835387,10.9848728,1908.6,1906.5,6.05873908]
[1772286835683,3.56284548,1908.0,1906.2,1.31150981]
[1772286835859,3.56284548,1907.7,1906.0,3.93758092]
[1772286836058,3.56284548,1907.7,1905.9,2.34136928]
[1772286836059,2.511,1907.6,1905.8,3.56284548]
[1772286836285,8.62316669,1907.6,1905.6,1.31192275]
[1772286836472,1.31075342,1907.3,1905.6,1.31192275]
[1772286836674,3.56284548,1907.1,1905.2,1.31215781]
[1772286836982,3.56284548,1907.1,1905.1,1.31222974]
[1772286836983,9.67501217,1907.1,1905.1,1.31222974]
[1772286837188,3.56284548,1906.8,1905.0,1.31229876]
[1772286837483,2.508,1906.7,1904.8,1.31247375]
[1772286837684,3.56284548,1906.5,1904.8,1.31247375]
[1772286837987,6.11216669,1907.1,1905.3,3.56284548]
[1772286837988,2.506,1906.9,1905.3,3.56284548]
[1772286838284,2.506,1906.9,1904.8,1.31247375]
[1772286838285,2.506,1906.9,1905.2,2.62]
[1772286838470,1.31109712,1906.8,1905.0,1.31232031]
[1772286838870,1.31109712,1906.8,1905.0,4.87516579]
[1772286839173,2.505,1906.7,1905.0,4.87516579]
[1772286839361,3.81709712,1906.8,1905.3,3.56284548]
[1772286839888,3.81709712,1906.8,1905.0,4.87516579]
[1772286840089,3.56284548,1906.6,1904.8,1.31243529]
[1772286840458,1.31150981,1906.2,1904.5,1.31262489]
[1772286840778,2.502,1906.1,1904.5,1.31262489]
[1772286841085,2.502,1906.1,1904.2,5.25151365]
[1772286841086,3.56284548,1905.7,1904.1,1.3128873]
[1772286841277,6.11216669,1905.9,1904.0,3.56284548]
[1772286841474,8.61116669,1905.8,1903.8,5.2524491]
[1772286841688,9.67501217,1905.8,1903.8,5.2524491]
[1772286841988,2.498,1905.7,1904.0,3.56284548]
[1772286842289,1.31150981,1906.2,1904.7,3.56284548]
[1772286842589,5.24603924,1906.3,1904.8,1.31247375]
[1772286842590,5.24578847,1906.3,1904.8,1.31247375]
[1772286842961,1.31095962,1907.0,1905.6,3.56284548]
[1772286843156,7.42285139,1907.4,1905.2,6.05873908]
[1772286843396,7.42285139,1907.4,1905.2,3.56284548]
[1772286843397,6.11216669,1907.1,1905.2,3.56284548]
[1772286843579,6.11216669,1907.1,1905.1,0.065536]
[1772286843580,3.56284548,1906.9,1905.1,2.611]
[1772286843783,6.11216669,1907.1,1905.2,3.56284548]
[1772286843986,6.11216669,1907.1,1904.9,3.56284548]
[1772286843987,3.56284548,1906.9,1904.9,3.56284548]
[1772286844290,2.496,1906.8,1904.9,3.56384548]
[1772286844609,2.496,1906.8,1904.9,0.001]
[1772286844610,6.11216669,1906.5,1904.9,0.001]
[1772286844909,3.56284548,1906.3,1904.9,0.001]
[1772286845197,3.56284548,1905.9,1904.9,0.001]
[1772286845396,6.05584548,1905.9,1904.9,0.001]
[1772286845612,12.16801217,1905.9,1904.9,0.001]
[1772286845760,3.56284548,1905.6,1903.9,1.31304809]
[1772286846157,6.11216669,1905.8,1903.9,1.31304809]
[1772286846459,6.11216669,1905.8,1903.8,2.603]
[1772286846460,3.56284548,1905.4,1903.8,2.603]
[1772286846665,1.31192275,1905.6,1904.2,3.56284548]
[1772286846963,7.4237453,1906.1,1904.2,3.56284548]
[1772286847482,1.31157861,1906.1,1904.7,3.56284548]
[1772286847673,1.31157861,1906.1,1904.3,6.12427508]
[1772286847863,1.31157861,1906.1,1904.3,6.05873908]
[1772286848469,1.31178507,1905.8,1904.2,3.56284548]
[1772286849083,1.31178507,1905.8,1904.1,1.31295625]
[1772286849283,3.56284548,1905.7,1904.1,1.31295625]
[1772286850093,1.31178507,1905.8,1904.1,1.31295625]
[1772286850295,1.31178507,1905.8,1904.2,3.56284548]
[1772286850463,1.31178507,1905.8,1904.3,1.31281835]
[1772286850670,3.56284548,1905.7,1903.9,5.25235798]
[1772286851081,9.54932665,1905.7,1903.9,5.25235798]
[1772286851699,12.02932665,1905.7,1903.9,5.25235798]
[1772286851868,12.02932665,1905.7,1903.9,7.84235798]
[1772286852465,1.31192275,1905.6,1903.9,5.25235798]
[1772286852671,3.56284548,1905.1,1903.7,1.31417846]
[1772286852999,5.98648117,1905.0,1903.7,1.31421779]
[1772286853199,2.476,1904.9,1903.7,1.31421779]
[1772286853567,2.476,1904.9,1903.7,0.001]
[1772286853776,5.98648117,1904.7,1902.9,5.25491171]
[1772286853976,2.474,1904.6,1902.9,8.81775719]
[1772286854703,1.31268049,1904.5,1903.0,7.83658462]
[1772286854879,1.31268049,1904.5,1903.0,3.56284548]
[1772286855203,1.31268049,1904.5,1903.1,2.58]
[1772286855364,1.31240485,1904.9,1903.3,3.56284548]
[1772286855570,1.31240485,1904.9,1903.3,6.14184548]
[1772286855799,1.31240485,1904.9,1903.3,6.14084548]
[1772286855967,1.31240485,1904.9,1903.3,3.56284548]
[1772286856294,3.56284548,1904.7,1902.9,1.31378422]
[1772286856494,1.31268049,1904.5,1902.9,1.31378422]
[1772286856797,1.31268049,1904.5,1902.6,1.31399138]
[1772286856798,3.56284548,1904.1,1902.6,1.31399138]
[1772286857097,2.465,1904.0,1902.6,1.31399138]
[1772286857600,8.45148117,1904.0,1902.1,1.31433678]
[1772286857774,5.98648117,1903.9,1903.0,0.001]
[1772286858100,5.98648117,1903.9,1902.1,1.31433678]
[1772286858101,5.98648117,1903.7,1902.1,1.31433678]
[1772286858475,1.3134391,1903.4,1901.8,5.87200482]
[1772286858776,1.3134391,1903.4,1901.9,1.31447216]
[1772286858970,1.3134391,1903.4,1902.7,0.001]
[1772286859172,1.3134391,1903.4,1901.4,11.1310652]
[1772286859173,3.56284548,1903.2,1901.6,1.31468237]
[1772286859496,7.29992027,1903.4,1901.6,1.31468237]
[1772286860271,7.29992027,1903.4,1901.1,5.87200482]
[1772286860272,3.56284548,1902.7,1901.1,5.87200482]
[1772286860498,3.56284548,1902.7,1901.0,2.565]
[1772286860499,1.31392232,1902.7,1900.9,13.69747338]
[1772286860699,5.98648117,1902.6,1900.9,5.26046856]
[1772286860902,4.8767678,1902.7,1900.5,5.2615543]
[1772286860903,5.98648117,1902.0,1900.5,5.2615543]
[1772286861105,5.98648117,1901.9,1900.4,1.31649505]
[1772286861271,2.455,1902.0,1900.4,1.31649505]
[1772286861272,5.98648117,1901.8,1900.4,1.31649505]
[1772286861603,5.98648117,1901.8,1900.4,1.31649205]
[1772286861791,5.98648117,1901.8,1900.4,0.001]
[1772286861974,5.98648117,1901.7,1900.4,0.001]
[1772286862397,5.98648117,1901.7,1900.4,1.3165008]
[1772286862577,1.31468237,1901.6,1900.4,0.001]
[1772286863185,5.25814952,1901.9,1900.4,0.001]
[1772286863384,5.25814952,1901.9,1900.4,2.56]
[1772286863586,2.452,1902.1,1900.5,3.56284548]
[1772286863906,1.31440588,1902.0,1900.4,2.559]
[1772286864270,1.31440588,1902.0,1900.4,0.001]
[1772286864470,1.31440588,1902.0,1900.4,2.56]
[1772286864692,1.31440588,1902.0,1900.5,1.3154433]
[1772286864900,1.31440588,1902.0,1900.6,2.556]
[1772286865178,7.30088705,1902.0,1900.5,1.3154433]
[1772286866195,1.31440588,1902.0,1900.5,10.7502936]
[1772286866577,1.31407679,1902.5,1901.1,3.56284548]
[1772286866777,1.31385326,1902.8,1901.2,2.616536]
[1772286866978,7.30033443,1902.8,1901.2,2.55]
[1772286867175,7.30033443,1902.8,1901.4,3.56284548]
[1772286867409,1.31385326,1902.8,1901.7,3.56284548]
[1772286867611,5.25447508,1903.2,1901.5,0.065536]
[1772286867809,5.25447508,1903.2,1901.7,3.56284548]
[1772286868395,5.25447508,1903.2,1901.8,2.546]
[1772286868591,5.25447508,1903.2,1901.3,1.31488981]
[1772286868797,5.25447508,1903.2,1901.4,12.0453863]
[1772286869108,5.25447508,1903.2,1901.7,3.56284548]
[1772286869316,5.25447508,1903.2,1901.8,0.065536]
[1772286869513,1.31357713,1903.2,1901.7,3.56284548]
[1772286869713,1.31357713,1903.2,1901.3,1.31488981]
[1772286869714,3.56284548,1903.0,1901.3,1.31488981]
[1772286870215,5.98648117,1902.9,1901.3,1.31488981]
[1772286870400,1.31357713,1903.2,1901.4,3.56284548]
[1772286870607,1.31357713,1903.2,1901.5,2.54]
[1772286870808,1.31357713,1903.2,1901.6,1.31468237]
[1772286871112,10.86290378,1903.2,1901.5,1.31470622]
[1772286871287,10.86290378,1903.2,1901.7,3.56284548]
[1772286871288,1.31357713,1903.2,1901.7,3.56284548]
[1772286871483,1.31357713,1903.2,1902.0,3.56284548]
[1772286872233,1.31357713,1903.2,1901.8,2.535]
[1772286872393,1.31357713,1903.2,1901.7,3.56284548]
[1772286872721,1.31371518,1903.0,1901.5,1.31470622]
[1772286873094,1.31371518,1903.0,1901.5,7.18771104]
[1772286873295,5.25345839,1903.6,1902.0,3.56284548]
[1772286873619,1.31316314,1903.8,1902.6,3.56284548]
[1772286873822,1.31314722,1903.9,1902.6,6.09384548]
[1772286874019,1.31514722,1903.9,1902.6,6.09384548]
[1772286874222,1.31514722,1903.9,1902.6,3.56284548]
[1772286874520,1.31510289,1903.9,1902.6,3.56284548]
[1772286874689,0.002,1903.9,1902.7,1.31392232]
[1772286876498,0.002,1903.9,1902.2,2.592536]
[1772286876499,0.002,1903.9,1902.2,2.527]
[1772286876823,1.31316314,1903.8,1902.3,4.87704408]
[1772286877115,1.31316314,1903.8,1902.3,1.3141986]
[1772286877695,1.31316314,1903.8,1902.3,4.87704408]
[1772286878145,1.31316314,1903.8,1902.4,2.52]
[1772286878291,0.002,1903.9,1902.9,3.56284548]
[1772286878491,0.002,1903.9,1903.2,3.56284548]
[1772286878720,5.25048839,1904.6,1903.1,2.518]
[1772286879402,5.25048839,1904.6,1903.0,2.517]
[1772286879923,5.25048839,1904.6,1903.0,2.515]
[1772286880222,5.25048839,1904.6,1903.1,3.56284548]
[1772286880427,1.31247375,1904.8,1903.4,3.56284548]
[1772286880716,5.249895,1904.9,1903.3,1.31350811]
[1772286881119,11.69766769,1905.4,1903.6,3.56284548]
[1772286881329,6.44887492,1905.4,1903.9,3.56284548]
[1772286882219,6.44887492,1905.4,1903.6,2.509]
[1772286882597,6.44887492,1905.4,1903.8,3.56284548]
[1772286882892,1.31212932,1905.3,1903.9,1.31309417]
[1772286883098,1.31212932,1905.3,1903.7,7.7593767]
[1772286883099,7.76100424,1905.3,1903.7,2.505]
[1772286883939,7.76100424,1905.3,1903.6,1.31330111]
[1772286884291,7.76100424,1905.3,1903.2,5.25320445]
[1772286884292,6.13197544,1905.0,1903.3,1.31350811]
[1772286884496,6.13197544,1905.0,1903.2,8.81687794]
[1772286884497,6.13197544,1904.8,1903.2,1.3135334]
[1772286884732,6.13197544,1904.4,1902.7,1.31392232]
[1772286885109,6.13197544,1904.1,1902.5,3.81302053]
[1772286885439,6.13197544,1904.0,1902.5,1.31402053]
[1772286885731,9.69482092,1903.9,1902.2,1.31426769]
[1772286885905,6.13197544,1903.8,1902.2,1.31426769]
[1772286886801,7.44520756,1903.7,1902.1,7.7490821]
[1772286887036,5.2529285,1904.0,1902.6,3.56284548]
[1772286887037,1.31302521,1904.0,1902.6,3.56284548]
[1772286887236,1.31302521,1904.0,1902.2,8.25894501]
[1772286887392,7.44500065,1904.0,1902.3,3.56284548]
[1772286888798,7.44500065,1904.0,1902.4,1.31412952]
[1772286889208,6.13197544,1903.6,1902.1,1.31433678]
[1772286890299,6.13197544,1903.6,1902.3,3.56284548]
[1772286890957,1.3133701,1903.5,1902.4,1.31412952]
[1772286891738,1.3133701,1903.5,1902.2,5.25701779]
[1772286892828,2.6233521,1903.9,1902.2,5.25701779]
[1772286892829,3.93651524,1903.9,1902.2,5.25701779]
[1772286893030,5.2526529,1903.8,1902.3,2.475]
[1772286893506,6.13197544,1903.7,1902.1,1.31426769]
[1772286893711,6.13197544,1903.7,1902.1,12.21525273]
[1772286894914,7.44493169,1904.2,1902.5,5.02954615]
[1772286895245,7.44493169,1904.2,1902.5,2.468]
[1772286895246,11.38382612,1904.1,1902.5,2.468]
[1772286895433,6.13197544,1904.0,1902.2,5.87143889]
[1772286895613,6.13197544,1904.0,1902.2,8.33843889]
[1772286895813,6.13197544,1903.8,1902.1,1.31426769]
[1772286896515,6.13197544,1903.8,1902.0,7.72151808]
[1772286896516,6.13197544,1903.6,1901.8,1.31454411]
[1772286896733,6.13197544,1903.6,1901.8,7.185983]
[1772286896934,1.3133701,1903.5,1901.8,7.185983]
[1772286897145,1.3133701,1903.5,1902.1,5.02954615]
[1772286897545,10.23783253,1903.9,1902.2,8.33343889]
[1772286897546,7.44513858,1903.8,1902.2,8.33343889]
[1772286897847,7.44513858,1903.8,1902.3,2.462]
[1772286898047,7.44513858,1903.8,1901.8,1.31454411]
[1772286898341,7.44513858,1903.8,1901.9,8.39597489]
[1772286898522,7.44513858,1903.8,1902.0,2.459]
[1772286898722,7.44513858,1903.8,1901.8,1.31454411]
[1772286899547,7.44513858,1903.8,1901.8,3.77254411]
[1772286899747,7.44513858,1903.8,1901.8,9.643983]
[1772286900262,7.44513858,1903.8,1901.8,1.31454411]
[1772286900466,6.13197544,1903.6,1901.8,1.31454411]
[1772286900773,6.13197544,1903.4,1901.8,1.31454411]
[1772286900931,6.13197544,1903.1,1901.7,0.001]
[1772286901136,1.31357713,1903.2,1901.7,0.001]
[1772286901137,6.13197544,1902.9,1901.7,0.001]
[1772286901363,6.13197544,1902.7,1901.5,0.001]
[1772286902158,1.13197544,1902.7,1901.5,0.001]
[1772286903070,1.31399138,1902.6,1901.5,0.001]
[1772286903270,6.13197544,1902.8,1901.9,0.001]
[1772286903592,11.38794096,1902.7,1901.9,0.001]
[1772286903738,6.13197544,1902.7,1901.9,0.001]
[1772286903938,11.38794096,1902.7,1901.9,0.001]
[1772286904136,6.38794096,1902.7,1901.5,0.001]
[1772286904477,1.31392232,1902.8,1901.5,5.87243889]
[1772286904766,5.25596552,1902.7,1901.5,0.001]
[1772286904937,1.31392232,1902.8,1901.5,0.001]
[1772286905139,5.25596552,1902.7,1901.5,0.001]
[1772286905476,11.13484662,1902.5,1901.5,0.001]
[1772286905680,5.02954615,1901.7,1900.4,0.001]
[1772286905977,2.348,1901.6,1900.4,0.001]
[1772286906274,2.23654615,1901.5,1900.0,5.87143889]
[1772286906491,2.348,1901.4,1900.0,5.87143889]
[1772286906881,5.02954615,1901.0,1899.5,6.5]
[1772286907080,6.60537865,1901.0,1899.5,7.81612597]
[1772286907261,3.6621665,1900.9,1899.5,6.5]
[1772286907596,2.347,1900.8,1899.5,6.5]
[1772286907789,2.347,1900.8,1899.4,1.46547865]
[1772286907790,5.02954615,1900.6,1899.4,0.1493159]
[1772286907976,5.260666,1901.0,1899.4,0.1493159]
[1772286907977,2.347,1900.5,1899.4,0.1493159]
[1772286908292,19.22787334,1901.0,1899.4,0.1493159]
[1772286908293,1.3151665,1900.9,1899.4,7.96551412]
[1772286908472,2.347,1901.0,1899.4,7.96551412]
[1772286908659,7.607666,1901.0,1899.4,6.5]
[1772286908859,1.31509731,1901.1,1899.5,6.5]
[1772286909189,1.31509731,1901.1,1899.5,10.26008342]
[1772286909489,1.31509731,1901.1,1899.6,6.5]
[1772286909665,1.31509731,1901.1,1899.2,7.81634372]
[1772286909995,5.02954615,1900.8,1899.2,8.943]
[1772286910365,0.02954615,1900.8,1899.2,8.943]
[1772286910872,6.298476,1900.9,1899.2,6.5]
[1772286911183,1.31606654,1899.6,1898.3,7.81696781]
[1772286911396,12.63642829,1900.1,1898.3,6.5]
[1772286911592,5.26398905,1899.9,1898.3,6.5]
[1772286911767,5.26398905,1899.9,1898.4,7.4]
[1772286911958,1.31585872,1900.0,1898.4,6.5]
[1772286912160,5.26398905,1899.9,1898.4,6.5]
[1772286912357,1.31585872,1900.0,1898.4,6.5]
[1772286912886,5.26398905,1899.9,1898.4,6.5]
[1772286913091,1.31599726,1899.7,1898.0,7.81813655]
[1772286913296,1.31599726,1899.7,1898.1,6.5]
[1772286913469,1.31599726,1899.7,1898.0,6.501]
[1772286914257,5.02954615,1899.2,1898.0,0.001]
[1772286914830,0.02954615,1899.2,1898.0,0.001]
[1772286915115,5.02954615,1898.9,1898.0,0.001]
[1772286915306,1.31641303,1899.1,1898.0,0.001]
[1772286915507,5.26565215,1899.3,1898.0,0.001]
[1772286915734,0.18685624,1899.0,1898.0,0.001]
[1772286916249,5.02954615,1899.1,1898.0,0.001]
[1772286916745,2.341,1899.3,1898.0,0.001]
[1772286917044,5.26537489,1899.4,1898.0,0.001]
[1772286917415,5.02954615,1898.6,1898.0,0.001]
[1772286917618,2.341,1899.2,1898.1,0.001]
[1772286918619,0.18685624,1899.0,1898.1,0.001]
[1772286918846,5.26537489,1899.4,1898.1,0.001]
[1772286919150,5.26537489,1899.4,1898.1,6.501]
[1772286919453,5.26537489,1899.4,1898.1,7.81808759]
[1772286919823,5.26537489,1899.4,1898.1,6.501]
[1772286920025,5.02954615,1899.1,1898.1,0.001]
[1772286920232,5.02954615,1899.1,1897.6,7.32091543]
[1772286920436,5.02954615,1899.1,1897.6,6.0035]
[1772286920629,5.26537489,1899.4,1897.6,7.32091722]
[1772286920940,5.26537489,1899.4,1897.8,6.44255766]
[1772286920941,5.02954615,1899.3,1897.8,6.44255766]
[1772286921142,1.31641303,1899.1,1897.8,6.44255766]
[1772286922246,1.31641303,1899.1,1897.8,7.75985559]
[1772286923170,1.31641303,1899.1,1897.9,8.87755766]
[1772286923555,1.31641303,1899.1,1897.9,6.44255766]
[1772286923923,1.31641303,1899.1,1897.8,6.44255766]
[1772286924352,1.31641303,1899.1,1897.6,2.434]
[1772286924758,1.31641303,1899.1,1897.4,6.44255766]
[1772286924759,0.68335624,1899.0,1897.4,6.44255766]
[1772286925059,0.68335624,1899.0,1897.1,5.27116611]
[1772286925060,5.71290239,1898.8,1897.1,2.434]
[1772286925261,5.71290239,1898.8,1897.1,3.75178728]
[1772286925262,1.31675971,1898.6,1897.1,3.75178728]
[1772286925464,1.31675971,1898.6,1897.2,6.44255766]
[1772286927459,5.26703887,1898.7,1897.2,7.76024111]
[1772286928065,0.68335624,1898.6,1896.8,10.19250218]
[1772286928277,0.68335624,1898.6,1896.9,6.44255766]
[1772286928278,0.4965,1898.6,1896.9,6.44255766]
[1772286929153,5.26703887,1898.7,1896.9,6.44255766]
[1772286929356,5.26703887,1898.7,1897.1,6.44255766]
[1772286929557,7.60203887,1898.7,1897.2,6.44255766]
[1772286929953,8.09853887,1898.7,1897.2,6.44255766]
[1772286930444,5.02954615,1898.5,1897.2,6.44255766]
[1772286930650,5.76353887,1898.7,1897.2,6.44255766]
[1772286930964,5.26703887,1898.7,1896.9,7.76048914]
[1772286931264,5.26703887,1898.7,1897.1,6.44255766]
[1772286931458,5.26703887,1898.7,1897.3,6.44255766]
[1772286932778,5.26703887,1898.7,1897.5,6.44255766]
[1772286933441,1.31648235,1899.0,1897.7,6.44255766]
[1772286933936,1.31648235,1899.0,1897.8,8.87055766]
[1772286934441,1.31648235,1899.0,1897.8,6.44255766]
[1772286935046,1.31648235,1899.0,1897.3,6.44255766]
[1772286935047,5.02954615,1898.5,1897.3,6.44255766]
[1772286935254,2.332,1898.5,1897.3,6.44255766]
[1772286935570,1.31689844,1898.4,1897.3,7.76018062]
[1772286935940,1.31689844,1898.4,1896.9,6.44355766]
[1772286936144,1.31689844,1898.4,1897.0,7.76142325]
[1772286937071,1.31689844,1898.4,1897.1,6.44255766]
[1772286937457,1.31710658,1898.1,1897.0,0.001]
[1772286937644,3.64710658,1898.1,1897.0,0.001]
[1772286937845,5.02954615,1897.8,1896.9,0.001]
[1772286938039,9.53399135,1898.1,1896.9,0.001]
[1772286938347,0.18685624,1898.0,1896.9,0.001]
[1772286938676,0.4965,1897.9,1896.9,0.001]
[1772286938982,2.73696524,1897.8,1896.9,0.001]
[1772286939139,0.4965,1897.9,1896.7,0.001]
[1772286939344,5.02954615,1898.0,1896.7,1.31907828]
[1772286939573,1.31724537,1897.9,1896.7,0.001]
[1772286939778,1.31724537,1897.9,1896.7,6.44355766]
[1772286941666,5.2689815,1898.0,1896.9,6.38302235]
[1772286941971,7.5979815,1898.0,1896.7,7.70207745]
[1772286942185,7.5979815,1898.0,1896.7,6.38402235]
[1772286942492,0.18685624,1897.9,1896.7,6.38402235]
[1772286943065,5.02954615,1897.8,1896.7,0.001]
[1772286943382,7.5979815,1898.0,1895.6,0.1493159]